[Event "IV Elllobregat Open Chess Tmnt"]
[Site "Sant Boi de Llobregat, Spain"]
[Date "2023.11.30"]
[Round "1.17"]
[White "Kistrup, Nicolai"]
[Black "Aditya, Mittal"]
[Result "0-1"]
[TimeControl "90min/40moves + 15min/end + 30sec from move 1"]
[WhiteFideId "1444816"]
[BlackFideId "35042025"]
[WhiteElo "2330"]
[BlackElo "2577"]

1. d4 {[%emt 02:48:28]} Nf6 {[%emt 00:00:02]} 2. c4 {[%emt 00:00:21]} e6 {[%emt
00:00:02]} 3. g3 {[%emt 00:00:35]} d5 {[%emt 00:00:10]} 4. Bg2 {[%emt
00:00:07]} Bb4+ {[%emt 00:00:02]} 5. Nd2 {[%emt 00:00:49]} O-O {[%emt
00:00:06]} 6. Ngf3 {[%emt 00:02:44]} b6 {[%emt 00:00:02]} 7. O-O {[%emt
00:02:25]} Bb7 {[%emt 00:00:14]} 8. cxd5 {[%emt 00:12:29]} exd5 {[%emt
00:00:51]} 9. Ne5 {[%emt 00:00:49]} a5 {[%emt 00:06:42]} 10. Ndf3 {[%emt
00:05:51]} Ne4 {[%emt 00:02:30]} 11. h4 {[%emt 00:04:46]} a4 {[%emt 00:07:34]}
12. Qc2 {[%emt 00:07:08]} Be7 {[%emt 00:04:56]} 13. Bf4 {[%emt 00:02:36]} f6
{[%emt 00:02:05]} 14. Nd3 {[%emt 00:04:06]} c5 {[%emt 00:02:08]} 15. b3 {[%emt
00:11:48]} Nc6 {[%emt 00:04:08]} 16. Be3 {[%emt 00:09:09]} Nb4 {[%emt
00:06:29]} 17. Nxb4 {[%emt 00:03:30]} cxb4 {[%emt 00:00:02]} 18. Bh3 {[%emt
00:09:53]} Bc8 {[%emt 00:01:38]} 19. Bxc8 {[%emt 00:06:57]} Qxc8 {[%emt
00:00:07]} 20. Qd3 {[%emt 00:02:13]} Bd6 {[%emt 00:20:00]} 21. Rfc1 {[%emt
00:04:59]} Qd7 {[%emt 00:00:27]} 22. Kg2 {[%emt 00:02:30]} Ra5 {[%emt
00:02:57]} 23. Rab1 {[%emt 00:04:58]} axb3 {[%emt 00:06:19]} 24. axb3 {[%emt
00:00:38]} Ra2 {[%emt 00:00:07]} 25. Rc2 {[%emt 00:00:32]} Rxc2 {[%emt
00:10:41]} 26. Qxc2 {[%emt 00:00:03]} Rc8 {[%emt 00:00:19]} 27. Qb2 {[%emt
00:00:19]} Qg4 {[%emt 00:00:13]} 28. Rc1 {[%emt 00:01:19]} Re8 {[%emt
00:01:54]} 29. Nh2 {[%emt 00:00:32]} Qg6 {[%emt 00:00:43]} 30. Nf1 {[%emt
00:02:00]} Nc3 {[%emt 00:04:05]} 31. Qc2 {[%emt 00:00:41]} f5 {[%emt 00:04:01]}
32. Re1 {[%emt 00:00:21]} Qf6 {[%emt 00:03:57]} 33. Qd3 {[%emt 00:00:38]} f4
{[%emt 00:00:24]} 34. Bxf4 {[%emt 00:00:33]} Bxf4 {[%emt 00:00:13]} 35. gxf4
{[%emt 00:00:05]} Qxf4 {[%emt 00:01:33]} 36. Ng3 {[%emt 00:00:34]} Ra8 {[%emt
00:00:26]} 37. h5 {[%emt 00:00:47]} Ra2 {[%emt 00:00:37]} 38. Kg1 {[%emt
00:00:38]} b5 {[%emt 00:00:48]} 39. Kg2 {[%emt 00:00:26]} Rd2 {[%emt 00:01:28]}
40. Qf5 {[%emt 00:00:36]} Qxf5 {[%emt 00:00:39]} 41. Nxf5 {[%emt 00:00:04]} Kf7
{[%emt 00:00:37]} 42. Ra1 {[%emt 00:10:53]} Kf6 {[%emt 00:00:40]} 43. Nd6
{[%emt 00:02:07]} Rxd4 {[%emt 00:04:04]} 44. Ra7 {[%emt 00:01:14]} Nxe2 {[%emt
00:02:56]} 45. Ne8+ {[%emt 00:01:42]} Kg5 {[%emt 00:00:06]} 46. Rxg7+ {[%emt
00:00:21]} Kh6 {[%emt 00:00:13]} 47. Rb7 {[%emt 00:01:53]} Rd3 {[%emt
00:01:01]} 48. Rxb5 {[%emt 00:00:39]} Nf4+ {[%emt 00:02:49]} 49. Kh2 {[%emt
00:00:31]} Kxh5 {[%emt 00:05:28]} 50. Rxb4 {[%emt 00:00:25]} Rh3+ {[%emt
00:00:42]} 51. Kg1 {[%emt 00:00:05]} Kg4 {[%emt 00:00:04]} 52. Nf6+ {[%emt
00:00:58]} Kf3 {[%emt 00:00:04]} 53. Rxf4+ {[%emt 00:00:23]} Kxf4 54. Nxd5+
{[%emt 00:00:07]} Kf3 {[%emt 00:00:38]} 55. b4 {[%emt 00:01:01]} Rh4 {[%emt
00:00:45]} 56. b5 {[%emt 00:00:31]} Rg4+ {[%emt 00:00:57]} 57. Kf1 {[%emt
00:00:22]} Rd4 {[%emt 00:00:26]} 58. Ne3 {[%emt 00:00:13]} Rd2 {[%emt
00:01:12]} 59. Kg1 {[%emt 00:00:30]} Rxf2 {[%emt 00:00:38]} 60. Nc4 {[%emt
00:00:40]} Rc2 {[%emt 00:00:35]} 61. Nd6 {[%emt 00:00:28]} Rg2+ {[%emt
00:01:01]} 62. Kh1 {[%emt 00:00:26]} Rb2 {[%emt 00:00:17]} 63. Kg1 {[%emt
00:00:47]} Rg2+ {[%emt 00:00:44]} 64. Kh1 {[%emt 00:00:05]} Rd2 {[%emt
00:00:27]} 65. Nc4 {[%emt 00:00:37]} Rd4 {[%emt 00:00:13]} 66. Ne5+ {[%emt
00:00:38]} Kg3 {[%emt 00:00:05]} 0-1

[Event "IV Elllobregat Open Chess Tmnt"]
[Site "Sant Boi de Llobregat, Spain"]
[Date "2023.11.30"]
[Round "1.18"]
[White "Laurusas, Tomas"]
[Black "Tulchynskyi, Feliks"]
[Result "1-0"]
[TimeControl "90min/40moves + 15min/end + 30sec from move 1"]
[WhiteFideId "12803731"]
[BlackFideId "34127895"]
[WhiteElo "2566"]
[BlackElo "2325"]

1. d4 {[%clk 01:30:58]} Nf6 {[%clk 01:30:44]} {[%emt 00:00:16]} 2. c4 {[%clk
01:31:20]} {[%emt 00:00:09]} e6 {[%clk 01:31:07]} {[%emt 00:00:07]} 3. Nc3
{[%clk 01:31:43]} {[%emt 00:00:07]} Bb4 {[%clk 01:31:03]} {[%emt 00:00:33]} 4.
e3 {[%clk 01:31:36]} {[%emt 00:00:39]} O-O {[%clk 01:31:24]} {[%emt 00:00:08]}
5. Bd3 {[%clk 01:30:20]} {[%emt 00:01:46]} d5 {[%clk 01:31:24]} {[%emt
00:00:30]} 6. Nge2 {[%clk 01:26:56]} {[%emt 00:03:54]} c5 {[%clk 01:28:10]}
{[%emt 00:03:44]} 7. cxd5 {[%clk 01:24:14]} {[%emt 00:03:12]} cxd4 {[%clk
01:27:08]} {[%emt 00:01:32]} 8. exd4 {[%clk 01:24:32]} {[%emt 00:00:11]} Nxd5
{[%clk 01:22:40]} {[%emt 00:04:58]} 9. O-O {[%clk 01:24:51]} {[%emt 00:00:11]}
Nc6 {[%clk 01:21:54]} {[%emt 00:01:16]} 10. Be4 {[%clk 01:21:39]} {[%emt
00:03:42]} Re8 {[%clk 01:14:51]} {[%emt 00:07:33]} 11. Qd3 {[%clk 01:18:36]}
{[%emt 00:03:33]} g6 {[%clk 01:12:14]} {[%emt 00:03:07]} 12. Qf3 {[%clk
01:10:23]} {[%emt 00:08:43]} Nb6 {[%clk 01:04:25]} {[%emt 00:08:19]} 13. Rd1
{[%clk 00:59:30]} {[%emt 00:11:23]} Qe7 {[%clk 00:59:44]} {[%emt 00:05:11]} 14.
Bf4 {[%clk 00:42:28]} {[%emt 00:17:32]} Bd7 {[%clk 00:43:22]} {[%emt 00:16:52]}
15. Qg3 {[%clk 00:41:22]} {[%emt 00:01:37]} Na5 {[%clk 00:31:53]} {[%emt
00:11:58]} 16. h4 {[%clk 00:15:07]} {[%emt 00:26:45]} Bc6 {[%clk 00:28:35]}
{[%emt 00:03:48]} 17. h5 {[%clk 00:15:28]} {[%emt 00:00:09]} Nd5 {[%clk
00:22:50]} {[%emt 00:06:15]} 18. hxg6 {[%clk 00:15:34]} {[%emt 00:00:24]} hxg6
{[%clk 00:21:09]} {[%emt 00:02:11]} 19. Bg5 {[%clk 00:09:44]} {[%emt 00:06:20]}
Qd7 {[%clk 00:19:29]} {[%emt 00:02:10]} 20. Bd3 {[%clk 00:09:18]} {[%emt
00:00:57]} Nxc3 {[%clk 00:17:34]} {[%emt 00:02:25]} 21. bxc3 {[%clk 00:09:22]}
{[%emt 00:00:25]} Be7 {[%clk 00:17:07]} {[%emt 00:00:58]} 22. Bf4 {[%clk
00:04:45]} {[%emt 00:05:07]} Bf6 {[%clk 00:15:27]} {[%emt 00:02:09]} 23. Be5
{[%clk 00:05:15]} Bxe5 {[%clk 00:10:54]} {[%emt 00:05:04]} 24. dxe5 {[%clk
00:05:43]} Qc7 {[%clk 00:11:11]} {[%emt 00:00:13]} 25. Re1 {[%clk 00:06:07]}
{[%emt 00:00:07]} Red8 {[%clk 00:03:30]} {[%emt 00:08:12]} 26. Nf4 {[%clk
00:06:27]} {[%emt 00:00:09]} Be8 {[%clk 00:03:26]} {[%emt 00:00:33]} 27. Rac1
{[%clk 00:03:11]} {[%emt 00:03:46]} Qe7 {[%clk 00:02:36]} {[%emt 00:01:20]} 28.
Re3 {[%clk 00:03:19]} {[%emt 00:00:23]} Nc6 {[%clk 00:02:09]} {[%emt 00:00:56]}
29. Nh5 {[%clk 00:03:23]} {[%emt 00:00:26]} Qf8 {[%clk 00:01:47]} {[%emt
00:00:52]} 30. Qg5 {[%clk 00:02:20]} {[%emt 00:01:33]} Nxe5 {[%clk 00:00:34]}
{[%emt 00:01:43]} 31. Nf6+ {[%clk 00:02:05]} {[%emt 00:00:45]} Kg7 {[%clk
00:00:57]} {[%emt 00:00:08]} 32. Qxe5 {[%clk 00:02:16]} {[%emt 00:00:19]} 1-0

[Event "IV Elllobregat Open Chess Tmnt"]
[Site "Sant Boi de Llobregat, Spain"]
[Date "2023.11.30"]
[Round "1.19"]
[White "Adan Bermudez, Sergio"]
[Black "Asadli, Vugar"]
[Result "0-1"]
[TimeControl "90min/40moves + 15min/end + 30sec from move 1"]
[WhiteFideId "2292726"]
[BlackFideId "13405764"]
[WhiteElo "2324"]
[BlackElo "2562"]

1. c4 {[%clk 01:26:46]} {[%emt 00:04:13]} g6 {[%clk 01:30:45]} {[%emt
00:00:15]} 2. Nc3 {[%clk 01:26:32]} {[%emt 00:00:44]} Bg7 {[%clk 01:31:06]}
{[%emt 00:00:08]} 3. g3 {[%clk 01:26:58]} {[%emt 00:00:05]} c5 {[%clk
01:31:12]} {[%emt 00:00:23]} 4. Bg2 {[%clk 01:27:22]} {[%emt 00:00:07]} Nc6
{[%clk 01:31:38]} {[%emt 00:00:04]} 5. a3 {[%clk 01:27:40]} {[%emt 00:00:12]}
b6 {[%clk 01:31:12]} {[%emt 00:00:55]} 6. b4 {[%clk 01:27:38]} {[%emt
00:00:32]} Bb7 {[%clk 01:30:19]} {[%emt 00:01:23]} 7. bxc5 {[%clk 01:26:04]}
{[%emt 00:02:04]} bxc5 {[%clk 01:29:10]} {[%emt 00:01:39]} 8. Rb1 {[%clk
01:26:28]} {[%emt 00:00:06]} Rb8 {[%clk 01:27:33]} {[%emt 00:02:07]} 9. Na4
{[%clk 01:24:33]} {[%emt 00:02:25]} Ba8 {[%clk 01:23:51]} {[%emt 00:04:11]} 10.
Rxb8 {[%clk 01:22:52]} {[%emt 00:02:11]} Qxb8 {[%clk 01:24:14]} {[%emt
00:00:07]} 11. Nxc5 {[%clk 01:23:12]} {[%emt 00:00:10]} Nd4 {[%clk 01:20:12]}
{[%emt 00:04:31]} 12. Na6 {[%clk 01:21:26]} {[%emt 00:02:16]} Qb1 {[%clk
01:18:15]} {[%emt 00:02:27]} 13. Bxa8 {[%clk 00:59:10]} {[%emt 00:22:46]} Nc2+
{[%clk 01:18:32]} {[%emt 00:00:13]} 14. Kf1 {[%clk 00:59:34]} {[%emt 00:00:06]}
Qb3 {[%clk 01:18:58]} {[%emt 00:00:04]} 15. d3 {[%clk 00:53:49]} {[%emt
00:06:15]} Ne3+ {[%clk 01:15:01]} {[%emt 00:04:27]} 16. Bxe3 {[%clk 00:54:16]}
{[%emt 00:00:03]} Qxd1+ {[%clk 01:15:27]} {[%emt 00:00:04]} 17. Kg2 {[%clk
00:54:34]} {[%emt 00:00:13]} Qa4 {[%clk 01:09:17]} {[%emt 00:06:40]} 18. Bb7
{[%clk 00:54:07]} {[%emt 00:00:56]} Nh6 {[%clk 01:08:11]} {[%emt 00:01:36]} 19.
Bxa7 {[%clk 00:47:24]} {[%emt 00:07:14]} O-O {[%clk 01:07:39]} {[%emt
00:01:01]} 20. Nf3 {[%clk 00:27:22]} {[%emt 00:20:32]} Qb3 {[%clk 01:06:04]}
{[%emt 00:02:04]} 21. Nc5 {[%clk 00:25:45]} {[%emt 00:02:08]} Qxa3 {[%clk
01:06:27]} {[%emt 00:00:07]} 22. Bb6 {[%clk 00:26:11]} {[%emt 00:00:04]} Rb8
{[%clk 01:03:14]} {[%emt 00:03:44]} 23. Rb1 {[%clk 00:25:50]} {[%emt 00:00:51]}
Qa2 {[%clk 01:02:39]} {[%emt 00:01:04]} 24. Rb5 {[%clk 00:25:56]} {[%emt
00:00:24]} Nf5 {[%clk 01:01:22]} {[%emt 00:01:47]} 25. Be4 {[%clk 00:21:23]}
{[%emt 00:05:03]} Qxe2 {[%clk 00:56:23]} {[%emt 00:05:29]} 26. Nxd7 {[%clk
00:16:15]} {[%emt 00:05:38]} Rxb6 {[%clk 00:56:09]} {[%emt 00:00:45]} 27. Rxb6
{[%clk 00:16:38]} {[%emt 00:00:07]} Bd4 {[%clk 00:56:18]} {[%emt 00:00:21]} 28.
Rb1 {[%clk 00:14:04]} {[%emt 00:03:04]} Bxf2 {[%clk 00:52:38]} {[%emt
00:04:10]} 29. Bxf5 {[%clk 00:06:56]} {[%emt 00:07:37]} gxf5 {[%clk 00:52:08]}
{[%emt 00:01:01]} 30. Nh4 {[%clk 00:04:34]} {[%emt 00:02:51]} Bd4+ {[%clk
00:51:42]} {[%emt 00:00:56]} 31. Kh3 {[%clk 00:04:46]} {[%emt 00:00:18]} Qg4+
{[%clk 00:51:20]} {[%emt 00:00:51]} 32. Kg2 {[%clk 00:05:14]} {[%emt 00:00:03]}
f4 {[%clk 00:51:36]} {[%emt 00:00:14]} 33. Rb8+ {[%clk 00:03:25]} {[%emt
00:02:19]} Kg7 {[%clk 00:52:01]} {[%emt 00:00:06]} 34. Rb7 {[%clk 00:02:14]}
{[%emt 00:01:41]} Qe2+ {[%clk 00:52:12]} {[%emt 00:00:18]} 35. Kh3 {[%clk
00:02:37]} {[%emt 00:00:08]} Qe6+ {[%clk 00:52:33]} {[%emt 00:00:09]} 36. g4
{[%clk 00:01:19]} {[%emt 00:01:48]} Qe3+ {[%emt 00:00:56]} 0-1

[Event "IV Elllobregat Open Chess Tmnt"]
[Site "Sant Boi de Llobregat, Spain"]
[Date "2023.11.30"]
[Round "1.20"]
[White "Sosa, Tomas"]
[Black "Yordanov, Lachezar"]
[Result "1/2-1/2"]
[TimeControl "90min/40moves + 15min/end + 30sec from move 1"]
[WhiteFideId "121576"]
[BlackFideId "2918927"]
[WhiteElo "2558"]
[BlackElo "2323"]

1. e4 {[%clk 01:27:59]} {[%emt 00:02:51]} c5 {[%clk 01:30:55]} {[%emt
00:00:14]} 2. Nc3 {[%clk 01:27:40]} {[%emt 00:00:49]} d6 {[%clk 01:31:17]}
{[%emt 00:00:09]} 3. f4 {[%clk 01:27:23]} {[%emt 00:00:46]} g6 {[%clk
01:31:37]} {[%emt 00:00:10]} 4. Nf3 {[%clk 01:26:38]} {[%emt 00:01:16]} Bg7
{[%clk 01:31:58]} {[%emt 00:00:08]} 5. Bb5+ {[%clk 01:27:01]} {[%emt 00:00:06]}
Bd7 {[%clk 01:32:18]} {[%emt 00:00:11]} 6. Bc4 {[%clk 01:26:23]} {[%emt
00:01:08]} Nc6 {[%clk 01:32:38]} {[%emt 00:00:10]} 7. d3 {[%clk 01:26:11]}
{[%emt 00:00:41]} Na5 {[%clk 01:28:06]} {[%emt 00:05:03]} 8. Bd2 {[%clk
01:25:46]} {[%emt 00:00:55]} e6 {[%clk 01:19:52]} {[%emt 00:08:44]} 9. e5
{[%clk 01:25:59]} {[%emt 00:00:17]} d5 {[%clk 01:12:30]} {[%emt 00:07:52]} 10.
Bb5 {[%clk 01:26:11]} {[%emt 00:00:17]} Ne7 {[%clk 01:12:17]} {[%emt 00:00:43]}
11. d4 {[%clk 01:24:09]} {[%emt 00:02:32]} cxd4 {[%clk 01:08:06]} {[%emt
00:04:41]} 12. Nxd4 {[%clk 01:23:57]} {[%emt 00:00:42]} Nac6 {[%clk 01:06:21]}
{[%emt 00:02:16]} 13. Bxc6 {[%clk 01:18:05]} {[%emt 00:06:22]} Nxc6 {[%clk
01:05:42]} {[%emt 00:01:09]} 14. Be3 {[%clk 01:17:49]} {[%emt 00:00:45]} f6
{[%clk 00:57:46]} {[%emt 00:08:26]} 15. Nxc6 {[%clk 01:08:22]} {[%emt
00:09:57]} bxc6 {[%clk 00:55:02]} {[%emt 00:03:14]} 16. Bc5 {[%clk 01:03:27]}
{[%emt 00:05:25]} fxe5 {[%clk 00:49:45]} {[%emt 00:05:46]} 17. fxe5 {[%clk
01:03:34]} {[%emt 00:00:23]} Qh4+ {[%clk 00:37:59]} {[%emt 00:12:16]} 18. g3
{[%clk 01:03:25]} {[%emt 00:00:40]} Qc4 {[%clk 00:37:54]} {[%emt 00:00:35]} 19.
Qd4 {[%clk 00:57:39]} {[%emt 00:06:15]} Qxd4 {[%clk 00:38:18]} {[%emt
00:00:06]} 20. Bxd4 {[%clk 00:58:04]} {[%emt 00:00:05]} O-O {[%clk 00:36:54]}
{[%emt 00:01:54]} 21. O-O-O {[%clk 00:52:08]} {[%emt 00:06:26]} Rf5 {[%clk
00:36:54]} {[%emt 00:00:30]} 22. g4 {[%clk 00:46:05]} {[%emt 00:06:33]} Rf4
{[%clk 00:36:36]} {[%emt 00:00:48]} 23. h3 {[%clk 00:46:24]} {[%emt 00:00:11]}
c5 {[%clk 00:28:13]} {[%emt 00:08:54]} 24. Bxc5 {[%clk 00:45:28]} {[%emt
00:01:25]} Bxe5 {[%clk 00:28:34]} {[%emt 00:00:09]} 25. Rhe1 {[%clk 00:42:37]}
{[%emt 00:03:20]} Bg7 {[%clk 00:27:40]} {[%emt 00:01:24]} 26. Bd6 {[%clk
00:40:52]} {[%emt 00:02:15]} Rf3 {[%clk 00:27:17]} {[%emt 00:00:53]} 27. Rd3
{[%clk 00:37:22]} {[%emt 00:04:00]} Rxd3 {[%clk 00:27:28]} {[%emt 00:00:19]} 28.
cxd3 {[%clk 00:37:46]} {[%emt 00:00:06]} Rc8 {[%clk 00:27:53]} {[%emt
00:00:06]} 29. Kd2 {[%clk 00:36:08]} {[%emt 00:02:07]} Bh6+ {[%clk 00:27:46]}
{[%emt 00:00:37]} 30. Kd1 {[%clk 00:36:23]} {[%emt 00:00:15]} d4 {[%clk
00:27:30]} {[%emt 00:00:46]} 31. Ne2 {[%clk 00:30:36]} {[%emt 00:06:16]} Bb5
{[%clk 00:23:44]} {[%emt 00:04:17]} 32. Bf4 {[%clk 00:27:45]} {[%emt 00:03:20]}
Bg7 {[%clk 00:22:43]} {[%emt 00:01:31]} 33. Nc1 {[%clk 00:25:38]} {[%emt
00:02:37]} Kf7 {[%clk 00:16:03]} {[%emt 00:07:11]} 34. h4 {[%clk 00:23:17]}
{[%emt 00:02:51]} Rc5 {[%clk 00:12:42]} {[%emt 00:03:50]} 35. Bb8 {[%clk
00:18:01]} {[%emt 00:05:45]} a6 {[%clk 00:10:44]} {[%emt 00:02:29]} 36. Kd2
{[%clk 00:15:43]} {[%emt 00:02:48]} Bd7 {[%clk 00:07:25]} {[%emt 00:03:50]} 37.
Bd6 {[%clk 00:10:04]} {[%emt 00:06:09]} Rd5 {[%clk 00:07:10]} {[%emt 00:00:45]}
38. Ba3 {[%clk 00:09:45]} {[%emt 00:00:48]} e5 {[%clk 00:04:35]} {[%emt
00:03:06]} 39. g5 {[%clk 00:10:10]} {[%emt 00:00:05]} h6 {[%clk 00:04:24]}
{[%emt 00:00:41]} 40. Nb3 {[%clk 00:24:53]} {[%emt 00:00:46]} hxg5 {[%clk
00:19:49]} {[%emt 00:00:05]} 41. hxg5 {[%clk 00:25:18]} {[%emt 00:00:05]} Bf5
{[%clk 00:18:08]} {[%emt 00:02:12]} 42. Nc5 {[%clk 00:20:52]} {[%emt 00:04:56]}
Bf8 {[%clk 00:17:28]} {[%emt 00:01:10]} 43. Nxa6 {[%clk 00:20:22]} {[%emt
00:00:59]} Bxa3 {[%clk 00:17:27]} {[%emt 00:00:31]} 44. bxa3 {[%clk 00:20:47]}
{[%emt 00:00:05]} Ra5 {[%clk 00:17:43]} {[%emt 00:00:14]} 45. Nb4 {[%clk
00:21:10]} {[%emt 00:00:07]} Ke6 {[%clk 00:17:20]} {[%emt 00:00:53]} 46. Nc2
{[%clk 00:13:40]} 1/2-1/2

[Event "IV Elllobregat Open Chess Tmnt"]
[Site "Sant Boi de Llobregat, Spain"]
[Date "2023.11.30"]
[Round "1.21"]
[White "Hedman, Erik"]
[Black "Muradli, Mahammad"]
[Result "0-1"]
[TimeControl "90min/40moves + 15min/end + 30sec from move 1"]
[WhiteFideId "1702351"]
[BlackFideId "13409301"]
[WhiteElo "2321"]
[BlackElo "2550"]

1. e4 {[%clk 01:30:56]} {[%emt 00:00:02]} c5 {[%clk 01:30:50]} {[%emt
00:00:10]} 2. Nf3 {[%clk 01:31:00]} {[%emt 00:00:26]} d6 {[%clk 01:31:12]}
{[%emt 00:00:07]} 3. d4 {[%clk 01:31:19]} {[%emt 00:00:11]} cxd4 {[%clk
01:31:36]} {[%emt 00:00:07]} 4. Nxd4 {[%clk 01:31:45]} {[%emt 00:00:04]} Nf6
{[%clk 01:31:55]} {[%emt 00:00:10]} 5. Nc3 {[%clk 01:32:08]} {[%emt 00:00:07]}
a6 {[%clk 01:32:18]} {[%emt 00:00:07]} 6. h3 {[%clk 01:31:22]} {[%emt
00:01:16]} e6 {[%clk 01:31:02]} {[%emt 00:01:47]} 7. g4 {[%clk 01:31:45]}
{[%emt 00:00:07]} Be7 {[%clk 01:31:26]} {[%emt 00:00:06]} 8. g5 {[%clk
01:31:21]} {[%emt 00:00:54]} Nfd7 {[%clk 01:31:48]} {[%emt 00:00:08]} 9. Bg2
{[%clk 01:31:19]} {[%emt 00:00:32]} Nc6 {[%clk 01:26:23]} {[%emt 00:05:55]} 10.
Be3 {[%clk 01:22:04]} {[%emt 00:09:46]} O-O {[%clk 01:22:47]} {[%emt 00:04:06]}
11. h4 {[%clk 01:12:49]} {[%emt 00:09:44]} Nxd4 {[%clk 01:21:13]} {[%emt
00:02:04]} 12. Qxd4 {[%clk 01:10:45]} {[%emt 00:02:34]} b5 {[%clk 01:20:52]}
{[%emt 00:00:51]} 13. a4 {[%clk 00:52:11]} {[%emt 00:19:04]} Rb8 {[%clk
01:10:32]} {[%emt 00:10:49]} 14. axb5 {[%clk 00:52:34]} {[%emt 00:00:08]} axb5
{[%clk 01:10:58]} {[%emt 00:00:04]} 15. O-O {[%clk 00:44:32]} {[%emt 00:08:32]}
Ne5 {[%clk 01:08:20]} {[%emt 00:03:08]} 16. Qd1 {[%clk 00:33:52]} {[%emt
00:11:10]} Nc4 {[%clk 01:00:55]} {[%emt 00:07:56]} 17. Bc1 {[%clk 00:32:26]}
{[%emt 00:01:56]} Qc7 {[%clk 01:00:38]} {[%emt 00:00:46]} 18. Ne2 {[%clk
00:26:14]} {[%emt 00:06:42]} Bb7 {[%clk 00:57:55]} {[%emt 00:03:13]} 19. Nd4
{[%clk 00:24:51]} {[%emt 00:01:53]} b4 {[%clk 00:57:46]} {[%emt 00:00:40]} 20.
b3 {[%clk 00:20:49]} {[%emt 00:04:31]} Na3 {[%clk 00:50:33]} {[%emt 00:07:43]}
21. c4 {[%clk 00:17:41]} {[%emt 00:03:39]} d5 {[%clk 00:47:37]} {[%emt
00:03:26]} 22. exd5 {[%clk 00:08:54]} {[%emt 00:09:17]} exd5 {[%clk 00:45:33]}
{[%emt 00:02:34]} 23. Nf5 {[%clk 00:07:28]} {[%emt 00:01:57]} Bc5 {[%clk
00:32:34]} {[%emt 00:13:29]} 24. Bb2 {[%clk 00:05:05]} {[%emt 00:02:53]} Qf4
{[%clk 00:32:02]} {[%emt 00:01:02]} 25. Nxg7 {[%clk 00:04:46]} {[%emt
00:00:49]} Bd6 {[%clk 00:27:27]} {[%emt 00:05:05]} 26. Re1 {[%clk 00:04:29]}
{[%emt 00:00:47]} d4 {[%clk 00:26:05]} {[%emt 00:01:52]} 27. Bxb7 {[%clk
00:02:20]} {[%emt 00:02:41]} Rxb7 {[%clk 00:26:15]} {[%emt 00:00:20]} 28. Nh5
{[%clk 00:01:42]} {[%emt 00:01:07]} Qh2+ {[%clk 00:21:35]} {[%emt 00:05:10]} 29.
Kf1 {[%clk 00:02:08]} {[%emt 00:00:05]} Qh3+ {[%clk 00:21:50]} {[%emt
00:00:14]} 30. Ke2 {[%clk 00:02:35]} {[%emt 00:00:04]} Re8+ {[%clk 00:20:23]}
{[%emt 00:01:57]} 31. Kd2 {[%clk 00:02:59]} {[%emt 00:00:05]} Rbe7 {[%clk
00:18:20]} {[%emt 00:02:33]} 32. Rxe7 {[%clk 00:02:39]} {[%emt 00:00:51]} Bxe7
{[%clk 00:17:41]} {[%emt 00:01:09]} 33. Qg1 {[%clk 00:01:11]} {[%emt 00:01:57]}
Qxb3 {[%clk 00:17:08]} {[%emt 00:01:02]} 34. Nf6+ {[%clk 00:01:15]} {[%emt
00:00:26]} Kh8 {[%clk 00:17:25]} {[%emt 00:00:13]} 35. Nxe8 {[%clk 00:00:35]}
{[%emt 00:01:11]} Qxb2+ {[%clk 00:15:09]} {[%emt 00:02:45]} 36. Kd3 {[%clk
00:01:00]} {[%emt 00:00:05]} Qc2+ {[%clk 00:15:34]} {[%emt 00:00:05]} 37. Kxd4
{[%clk 00:01:22]} {[%emt 00:00:07]} Qxc4+ {[%clk 00:15:57]} {[%emt 00:00:08]}
38. Ke3 {[%clk 00:01:16]} {[%emt 00:00:37]} Nc2+ {[%clk 00:16:19]} {[%emt
00:00:07]} 39. Kd2 {[%clk 00:01:22]} {[%emt 00:00:24]} Qc3+ {[%clk 00:16:43]}
{[%emt 00:00:06]} 40. Ke2 {[%clk 00:16:44]} {[%emt 00:00:08]} Nd4+ {[%clk
00:32:07]} {[%emt 00:00:05]} 0-1